[Event "Titled Tuesday Blitz May 10 Early 2022"]
[White "Piesik, Piotr"]
[Black "Kozak, Adam"]
[WhiteFideId "1136194"]
[BlackFideId "753246"]
[WhiteElo "2190"]
[BlackElo "2459"]
[Result "0-1"]
[Round "06"]
[TimeControl "180+1"]
[Date "2022.05.10"]
[WhiteClock "0:00:41"]
[BlackClock "0:01:37"]

1. Nf3 {[%clk 0:03:00]}  c5 {[%clk 0:02:44]} 2. e4 {[%clk 0:02:59]}  a6 {[%clk 0:02:41]} 3. c4 {[%clk 0:02:58]}  e6 {[%clk 0:02:41]} 4. Nc3 {[%clk 0:02:57]}  Nf6 {[%clk 0:02:36]} 5. d4 {[%clk 0:02:56]}  cxd4 {[%clk 0:02:36]} 6. Nxd4 {[%clk 0:02:57]}  Bb4 {[%clk 0:02:36]} 7. Qd3 {[%clk 0:02:50]}  d6 {[%clk 0:02:35]} 8. f3 {[%clk 0:02:46]}  O-O {[%clk 0:02:35]} 9. Be2 {[%clk 0:02:43]}  Nc6 {[%clk 0:02:33]} 10. Nc2 {[%clk 0:02:35]}  Bc5 {[%clk 0:02:33]} 11. Be3 {[%clk 0:02:34]}  Qb6 {[%clk 0:02:30]} 12. O-O-O {[%clk 0:02:23]}  Nb4 {[%clk 0:02:30]} 13. Nxb4 {[%clk 0:02:23]}  Bxe3+ {[%clk 0:02:30]} 14. Kb1 {[%clk 0:02:15]}  Bc5 {[%clk 0:02:30]} 15. Nc2 {[%clk 0:02:13]}  Bd7 {[%clk 0:02:30]} 16. g4 {[%clk 0:02:08]}  Bc6 {[%clk 0:02:29]} 17. g5 {[%clk 0:02:03]}  Nd7 {[%clk 0:02:29]} 18. f4 {[%clk 0:02:03]}  a5 {[%clk 0:02:29]} 19. h4 {[%clk 0:01:58]}  a4 {[%clk 0:02:28]} 20. h5 {[%clk 0:01:56]}  Rfd8 {[%clk 0:02:19]} 21. g6 {[%clk 0:01:55]}  fxg6 {[%clk 0:02:20]} 22. hxg6 {[%clk 0:01:55]}  h6 {[%clk 0:02:21]} 23. Bg4 {[%clk 0:01:51]}  Nf8 {[%clk 0:02:14]} 24. Qh3 {[%clk 0:01:50]}  Re8 {[%clk 0:02:05]} 25. Rhf1 {[%clk 0:01:39]}  Bb4 {[%clk 0:02:01]} 26. Nxb4 {[%clk 0:01:37]}  Qxb4 {[%clk 0:02:02]} 27. Qd3 {[%clk 0:01:25]}  a3 {[%clk 0:02:00]} 28. b3 {[%clk 0:01:24]}  Rad8 {[%clk 0:01:53]} 29. f5 {[%clk 0:01:21]}  exf5 {[%clk 0:01:53]} 30. exf5 {[%clk 0:01:21]}  Nd7 {[%clk 0:01:53]} 31. Nd5 {[%clk 0:01:10]}  Bxd5 {[%clk 0:01:52]} 32. Qxd5+ {[%clk 0:01:11]}  Kh8 {[%clk 0:01:52]} 33. f6 {[%clk 0:01:10]}  Qc3 {[%clk 0:01:49]} 34. fxg7+ {[%clk 0:01:09]}  Qxg7 {[%clk 0:01:49]} 35. Rd2 {[%clk 0:01:04]}  Nc5 {[%clk 0:01:42]} 36. Bd1 {[%clk 0:00:49]}  Rf8 {[%clk 0:01:38]} 37. Rf7 {[%clk 0:00:44]}  Qxg6+ {[%clk 0:01:37]} 38. Bc2 {[%clk 0:00:41]}  Qxf7 {[%clk 0:01:37]} 0-1


[Site "https://www.chess.com"]

[Event "Titled Tuesday Blitz May 10 Early 2022"]
[White "Plotnikov, Pavel"]
[Black "Zaksaite, Salomeja"]
[WhiteFideId "4170342"]
[BlackFideId "12801496"]
[WhiteElo "2298"]
[BlackElo "1953"]
[Result "1-0"]
[Round "06"]
[TimeControl "180+1"]
[Date "2022.05.11"]
[WhiteClock "0:02:29"]
[BlackClock "0:00:34"]

1. e4 {[%clk 0:02:59]}  c5 {[%clk 0:02:16]} 2. Nf3 {[%clk 0:02:57]}  e6 {[%clk 0:02:14]} 3. d4 {[%clk 0:02:57]}  cxd4 {[%clk 0:02:12]} 4. Nxd4 {[%clk 0:02:58]}  Nf6 {[%clk 0:02:12]} 5. Nc3 {[%clk 0:02:59]}  Nc6 {[%clk 0:02:10]} 6. Nxc6 {[%clk 0:02:54]}  bxc6 {[%clk 0:02:08]} 7. e5 {[%clk 0:02:55]}  Nd5 {[%clk 0:02:04]} 8. Ne4 {[%clk 0:02:55]}  Qc7 {[%clk 0:02:04]} 9. f4 {[%clk 0:02:56]}  Qb6 {[%clk 0:02:04]} 10. c4 {[%clk 0:02:51]}  Bb4+ {[%clk 0:02:03]} 11. Ke2 {[%clk 0:02:50]}  f5 {[%clk 0:02:03]} 12. Nf2 {[%clk 0:02:50]}  Ne7 {[%clk 0:01:54]} 13. Nd3 {[%clk 0:02:38]}  Qb8 {[%clk 0:01:46]} 14. Qa4 {[%clk 0:02:29]}  c5 {[%clk 0:00:34]} 15. a3 {[%clk 0:02:29]} 1-0


[Site "https://www.chess.com"]

[Event "Titled Tuesday Blitz May 10 Early 2022"]
[White "Priyanka, K"]
[Black "Tristan, Leonardo"]
[WhiteFideId "5082986"]
[BlackFideId "113816"]
[WhiteElo "1905"]
[BlackElo "2404"]
[Result "0-1"]
[Round "06"]
[TimeControl "180+1"]
[Date "2022.05.11"]
[WhiteClock "0:00:01"]
[BlackClock "0:00:31"]

1. e4 {[%clk 0:03:00]}  d5 {[%clk 0:03:00]} 2. exd5 {[%clk 0:03:00]}  Qxd5 {[%clk 0:03:00]} 3. Nc3 {[%clk 0:03:00]}  Qa5 {[%clk 0:03:01]} 4. d4 {[%clk 0:02:59]}  Nf6 {[%clk 0:03:01]} 5. Bc4 {[%clk 0:02:59]}  Bg4 {[%clk 0:03:01]} 6. Ne2 {[%clk 0:02:57]}  Nc6 {[%clk 0:03:00]} 7. f3 {[%clk 0:02:50]}  Bf5 {[%clk 0:03:00]} 8. Bd2 {[%clk 0:02:41]}  O-O-O {[%clk 0:03:01]} 9. Nd5 {[%clk 0:01:51]}  Qa4 {[%clk 0:02:59]} 10. Bb3 {[%clk 0:01:34]}  Qa6 {[%clk 0:02:59]} 11. Ne3 {[%clk 0:01:25]}  Bg6 {[%clk 0:02:56]} 12. c3 {[%clk 0:01:10]}  e5 {[%clk 0:02:53]} 13. d5 {[%clk 0:01:08]}  Na5 {[%clk 0:02:51]} 14. c4 {[%clk 0:01:03]}  Qb6 {[%clk 0:02:49]} 15. Nc3 {[%clk 0:00:39]}  Nxb3 {[%clk 0:02:34]} 16. axb3 {[%clk 0:00:39]}  e4 {[%clk 0:02:26]} 17. f4 {[%clk 0:00:34]}  Bh5 {[%clk 0:02:18]} 18. g4 {[%clk 0:00:32]}  Nxg4 {[%clk 0:02:17]} 19. Nxg4 {[%clk 0:00:31]}  f5 {[%clk 0:02:18]} 20. Be3 {[%clk 0:00:18]}  Bc5 {[%clk 0:02:01]} 21. Na4 {[%clk 0:00:16]}  Bb4+ {[%clk 0:02:01]} 22. Kf2 {[%clk 0:00:13]}  Qd6 {[%clk 0:01:48]} 23. c5 {[%clk 0:00:11]}  Qe7 {[%clk 0:01:28]} 24. Qd4 {[%clk 0:00:11]}  Bxg4 {[%clk 0:01:14]} 25. Qxb4 {[%clk 0:00:10]}  Qh4+ {[%clk 0:01:14]} 26. Kf1 {[%clk 0:00:10]}  Bh3+ {[%clk 0:01:14]} 27. Ke2 {[%clk 0:00:10]}  Qg4+ {[%clk 0:01:12]} 28. Ke1 {[%clk 0:00:07]}  Qf3 {[%clk 0:01:08]} 29. Kd2 {[%clk 0:00:03]}  Rxd5+ {[%clk 0:01:08]} 30. Bd4 {[%clk 0:00:03]}  Rhd8 {[%clk 0:01:00]} 31. Kc2 {[%clk 0:00:02]}  Rxd4 {[%clk 0:01:00]} 32. Qc3 {[%clk 0:00:02]}  Qg2+ {[%clk 0:00:57]} 33. Kb1 {[%clk 0:00:01]}  Qxh1+ {[%clk 0:00:57]} 34. Ka2 {[%clk 0:00:01]}  Qf3 {[%clk 0:00:57]} 35. Qa5 {[%clk 0:00:01]}  Kb8 {[%clk 0:00:32]} 36. c6 {[%clk 0:00:01]}  e3 {[%clk 0:00:31]} 0-1


[Site "https://www.chess.com"]

[Event "Titled Tuesday Blitz May 10 Early 2022"]
[White "Reprintsev, Alexander"]
[Black "Riehle, Marco"]
[WhiteFideId "14100541"]
[BlackFideId "12904392"]
[WhiteElo "2108"]
[BlackElo "2462"]
[Result "0-1"]
[Round "06"]
[TimeControl "180+1"]
[Date "2022.05.11"]
[WhiteClock "0:00:09"]
[BlackClock "0:01:19"]

1. e4 {[%clk 0:02:41]}  e5 {[%clk 0:02:59]} 2. f4 {[%clk 0:02:40]}  exf4 {[%clk 0:02:59]} 3. Bc4 {[%clk 0:02:40]}  Ne7 {[%clk 0:02:59]} 4. Nc3 {[%clk 0:02:37]}  c6 {[%clk 0:02:59]} 5. d4 {[%clk 0:02:32]}  d5 {[%clk 0:02:59]} 6. Bb3 {[%clk 0:02:32]}  dxe4 {[%clk 0:02:58]} 7. Bxf4 {[%clk 0:02:25]}  Nd5 {[%clk 0:02:58]} 8. Bxb8 {[%clk 0:02:18]}  Rxb8 {[%clk 0:02:55]} 9. Nxe4 {[%clk 0:02:17]}  Bb4+ {[%clk 0:02:47]} 10. c3 {[%clk 0:02:16]}  Qh4+ {[%clk 0:02:47]} 11. Nf2 {[%clk 0:02:15]}  Nxc3 {[%clk 0:02:47]} 12. bxc3 {[%clk 0:02:11]}  Bxc3+ {[%clk 0:02:48]} 13. Kf1 {[%clk 0:02:10]}  Bxa1 {[%clk 0:02:42]} 14. Nf3 {[%clk 0:02:06]}  Qf4 {[%clk 0:02:31]} 15. Qe1+ {[%clk 0:01:54]}  Be6 {[%clk 0:02:27]} 16. Bxe6 {[%clk 0:01:54]}  fxe6 {[%clk 0:02:16]} 17. Qxe6+ {[%clk 0:01:10]}  Kd8 {[%clk 0:02:15]} 18. Nd3 {[%clk 0:00:59]}  Qf6 {[%clk 0:02:10]} 19. Qc4 {[%clk 0:00:45]}  Kc7 {[%clk 0:01:53]} 20. Kf2 {[%clk 0:00:21]}  b5 {[%clk 0:01:42]} 21. Qc5 {[%clk 0:00:19]}  Bxd4+ {[%clk 0:01:41]} 22. Qxd4 {[%clk 0:00:19]}  Qxd4+ {[%clk 0:01:42]} 23. Nxd4 {[%clk 0:00:20]}  Kb6 {[%clk 0:01:40]} 24. Nb3 {[%clk 0:00:18]}  Rbd8 {[%clk 0:01:39]} 25. Ke3 {[%clk 0:00:16]}  Rhe8+ {[%clk 0:01:38]} 26. Kd2 {[%clk 0:00:16]}  c5 {[%clk 0:01:38]} 27. Nxc5 {[%clk 0:00:17]}  Re5 {[%clk 0:01:29]} 28. Kc3 {[%clk 0:00:14]}  Rxc5+ {[%clk 0:01:27]} 29. Nxc5 {[%clk 0:00:15]}  Kxc5 {[%clk 0:01:27]} 30. Rf1 {[%clk 0:00:15]}  b4+ {[%clk 0:01:26]} 31. Kc2 {[%clk 0:00:14]}  Rd7 {[%clk 0:01:23]} 32. Rf5+ {[%clk 0:00:15]}  Rd5 {[%clk 0:01:22]} 33. Rf7 {[%clk 0:00:15]}  Rg5 {[%clk 0:01:22]} 34. g3 {[%clk 0:00:15]}  a5 {[%clk 0:01:22]} 35. Kd3 {[%clk 0:00:15]}  h5 {[%clk 0:01:21]} 36. Rc7+ {[%clk 0:00:14]}  Kb5 {[%clk 0:01:21]} 37. Ra7 {[%clk 0:00:09]}  Ka4 {[%clk 0:01:21]} 38. Kc2 {[%clk 0:00:10]}  Ka3 {[%clk 0:01:20]} 39. Kb1 {[%clk 0:00:10]}  Re5 {[%clk 0:01:19]} 40. Rxg7 {[%clk 0:00:08]}  Re1+ {[%clk 0:01:18]} 41. Kc2 {[%clk 0:00:08]}  Kxa2 {[%clk 0:01:19]} 42. Kd2 {[%clk 0:00:09]}  Re5 {[%clk 0:01:19]} 0-1


[Site "https://www.chess.com"]

[Event "Titled Tuesday Blitz May 10 Early 2022"]
[White "Risteski, Emil"]
[Black "Sahil, Tickoo"]
[WhiteFideId "15005267"]
[BlackFideId "5019710"]
[WhiteElo "2070"]
[BlackElo "2099"]
[Result "0-1"]
[Round "06"]
[TimeControl "180+1"]
[Date "2022.05.11"]
[WhiteClock "0:00:56"]
[BlackClock "0:00:06"]

1. e4 {[%clk 0:03:00]}  c5 {[%clk 0:02:59]} 2. Be2 {[%clk 0:03:00]}  Nc6 {[%clk 0:02:49]} 3. d3 {[%clk 0:03:00]}  g6 {[%clk 0:02:48]} 4. f4 {[%clk 0:03:00]}  Bg7 {[%clk 0:02:48]} 5. Nf3 {[%clk 0:03:01]}  d6 {[%clk 0:02:48]} 6. O-O {[%clk 0:03:00]}  e6 {[%clk 0:02:48]} 7. c3 {[%clk 0:02:48]}  Nge7 {[%clk 0:02:48]} 8. Be3 {[%clk 0:02:48]}  O-O {[%clk 0:02:47]} 9. Qe1 {[%clk 0:02:45]}  b6 {[%clk 0:02:41]} 10. Na3 {[%clk 0:02:44]}  Bb7 {[%clk 0:02:41]} 11. Nc2 {[%clk 0:02:43]}  Rc8 {[%clk 0:02:40]} 12. Kh1 {[%clk 0:02:36]}  Qd7 {[%clk 0:02:35]} 13. Qf2 {[%clk 0:02:24]}  a6 {[%clk 0:02:26]} 14. Rae1 {[%clk 0:02:22]}  b5 {[%clk 0:02:22]} 15. Qh4 {[%clk 0:02:07]}  b4 {[%clk 0:01:56]} 16. Bd2 {[%clk 0:02:05]}  bxc3 {[%clk 0:01:54]} 17. bxc3 {[%clk 0:02:02]}  d5 {[%clk 0:01:53]} 18. e5 {[%clk 0:01:56]}  Nf5 {[%clk 0:01:44]} 19. Qf2 {[%clk 0:01:55]}  d4 {[%clk 0:01:22]} 20. c4 {[%clk 0:01:51]}  Rb8 {[%clk 0:01:03]} 21. Ng5 {[%clk 0:01:44]}  Ba8 {[%clk 0:00:38]} 22. Bc1 {[%clk 0:01:34]}  Nb4 {[%clk 0:00:31]} 23. Nxb4 {[%clk 0:01:31]}  Rxb4 {[%clk 0:00:32]} 24. Bf3 {[%clk 0:01:24]}  Bxf3 {[%clk 0:00:31]} 25. Qxf3 {[%clk 0:01:23]}  Rfb8 {[%clk 0:00:30]} 26. Ne4 {[%clk 0:01:21]}  Qc7 {[%clk 0:00:29]} 27. g4 {[%clk 0:01:17]}  Ne3 {[%clk 0:00:19]} 28. Bxe3 {[%clk 0:01:16]}  dxe3 {[%clk 0:00:18]} 29. Qxe3 {[%clk 0:01:17]}  Rb2 {[%clk 0:00:18]} 30. Rf2 {[%clk 0:01:15]}  Rxf2 {[%clk 0:00:18]} 31. Qxf2 {[%clk 0:01:16]}  Qa5 {[%clk 0:00:12]} 32. Re2 {[%clk 0:01:14]}  Rb1+ {[%clk 0:00:11]} 33. Kg2 {[%clk 0:01:14]}  Qa4 {[%clk 0:00:10]} 34. Nc3 {[%clk 0:01:11]}  Qc6+ {[%clk 0:00:06]} 35. Qf3 {[%clk 0:01:11]}  Rg1+ {[%clk 0:00:04]} 36. Kf2 {[%clk 0:01:03]}  Rf1+ {[%clk 0:00:05]} 37. Kxf1 {[%clk 0:01:03]}  Qxf3+ {[%clk 0:00:05]} 38. Ke1 {[%clk 0:01:04]}  Qxg4 {[%clk 0:00:06]} 39. Ne4 {[%clk 0:01:02]}  Qxf4 {[%clk 0:00:05]} 40. Nxc5 {[%clk 0:01:02]}  Qh4+ {[%clk 0:00:05]} 41. Kd2 {[%clk 0:01:01]}  Qd4 {[%clk 0:00:05]} 42. Nb3 {[%clk 0:01:00]}  Qb2+ {[%clk 0:00:05]} 43. Ke1 {[%clk 0:01:00]}  Qa3 {[%clk 0:00:05]} 44. d4 {[%clk 0:00:59]}  Qb4+ {[%clk 0:00:05]} 45. Nd2 {[%clk 0:00:57]}  a5 {[%clk 0:00:05]} 46. Kd1 {[%clk 0:00:57]}  Bh6 {[%clk 0:00:06]} 47. Ne4 {[%clk 0:00:56]}  Qb1# {[%clk 0:00:06]} 0-1


[Site "https://www.chess.com"]

[Event "Titled Tuesday Blitz May 10 Early 2022"]
[White "Rodchenkov, Sergey D."]
[Black "Mirzoev, Azer"]
[WhiteFideId "4168712"]
[BlackFideId "13400304"]
[WhiteElo "2306"]
[BlackElo "2525"]
[Result "1-0"]
[Round "06"]
[TimeControl "180+1"]
[Date "2022.05.11"]
[WhiteClock "0:00:20"]
[BlackClock "0:00:01"]

1. e4 {[%clk 0:03:00]}  c6 {[%clk 0:03:00]} 2. d4 {[%clk 0:03:00]}  d5 {[%clk 0:03:01]} 3. e5 {[%clk 0:02:59]}  Bf5 {[%clk 0:03:01]} 4. Nf3 {[%clk 0:02:59]}  e6 {[%clk 0:03:01]} 5. Be2 {[%clk 0:02:59]}  Nd7 {[%clk 0:03:01]} 6. O-O {[%clk 0:03:00]}  Ne7 {[%clk 0:03:02]} 7. Nbd2 {[%clk 0:03:00]}  Nc8 {[%clk 0:03:02]} 8. c4 {[%clk 0:02:53]}  Be7 {[%clk 0:03:01]} 9. b3 {[%clk 0:02:51]}  O-O {[%clk 0:03:00]} 10. Bb2 {[%clk 0:02:52]}  h6 {[%clk 0:02:57]} 11. Re1 {[%clk 0:02:53]}  a5 {[%clk 0:02:54]} 12. a3 {[%clk 0:02:51]}  Bh7 {[%clk 0:02:46]} 13. Nf1 {[%clk 0:02:51]}  Ncb6 {[%clk 0:02:38]} 14. c5 {[%clk 0:02:48]}  Nc8 {[%clk 0:02:37]} 15. b4 {[%clk 0:02:47]}  f6 {[%clk 0:02:32]} 16. exf6 {[%clk 0:02:42]}  Bxf6 {[%clk 0:02:27]} 17. Bd3 {[%clk 0:02:42]}  Bxd3 {[%clk 0:02:24]} 18. Qxd3 {[%clk 0:02:43]}  Re8 {[%clk 0:02:24]} 19. Ng3 {[%clk 0:02:43]}  Nf8 {[%clk 0:02:14]} 20. Nh5 {[%clk 0:02:40]}  Qe7 {[%clk 0:02:04]} 21. Ne5 {[%clk 0:02:24]}  Bxe5 {[%clk 0:01:59]} 22. Rxe5 {[%clk 0:02:24]}  Qf7 {[%clk 0:01:58]} 23. bxa5 {[%clk 0:02:07]}  Rxa5 {[%clk 0:01:56]} 24. Bc3 {[%clk 0:01:57]}  Ra8 {[%clk 0:01:52]} 25. Bd2 {[%clk 0:01:48]}  Ne7 {[%clk 0:01:49]} 26. Rae1 {[%clk 0:01:40]}  Nf5 {[%clk 0:01:32]} 27. Nf4 {[%clk 0:00:58]}  Ra4 {[%clk 0:01:14]} 28. Bb4 {[%clk 0:00:48]}  Nh4 {[%clk 0:01:06]} 29. Qg3 {[%clk 0:00:41]}  Nhg6 {[%clk 0:00:59]} 30. Nxg6 {[%clk 0:00:41]}  Nxg6 {[%clk 0:01:00]} 31. R5e3 {[%clk 0:00:41]}  Kh7 {[%clk 0:00:42]} 32. h4 {[%clk 0:00:38]}  Raa8 {[%clk 0:00:40]} 33. Rf3 {[%clk 0:00:37]}  Qe7 {[%clk 0:00:36]} 34. h5 {[%clk 0:00:37]}  Nf8 {[%clk 0:00:33]} 35. Bd2 {[%clk 0:00:32]}  Ra4 {[%clk 0:00:21]} 36. Rf4 {[%clk 0:00:31]}  Rea8 {[%clk 0:00:10]} 37. Re3 {[%clk 0:00:31]}  Qe8 {[%clk 0:00:09]} 38. Ref3 {[%clk 0:00:28]}  Nd7 {[%clk 0:00:05]} 39. Rf7 {[%clk 0:00:26]}  Qg8 {[%clk 0:00:01]} 40. Bxh6 {[%clk 0:00:20]} 1-0


[Site "https://www.chess.com"]

[Event "Titled Tuesday Blitz May 10 Early 2022"]
[White "Rustemov, Alexander"]
[Black "Vovk, Orest"]
[WhiteFideId "4119002"]
[BlackFideId "14113490"]
[WhiteElo "2707"]
[BlackElo "2203"]
[Result "1-0"]
[Round "06"]
[TimeControl "180+1"]
[Date "2022.05.11"]
[WhiteClock "0:00:20"]
[BlackClock "0:00:03"]

1. d4 {[%clk 0:03:00]}  e5 {[%clk 0:02:50]} 2. dxe5 {[%clk 0:03:00]}  Nc6 {[%clk 0:02:49]} 3. Nf3 {[%clk 0:03:00]}  Qe7 {[%clk 0:02:50]} 4. Bg5 {[%clk 0:03:00]}  Qb4+ {[%clk 0:02:50]} 5. Bd2 {[%clk 0:03:00]}  Qxb2 {[%clk 0:02:50]} 6. Nc3 {[%clk 0:02:59]}  Bb4 {[%clk 0:02:51]} 7. Rb1 {[%clk 0:02:58]}  Qxc3 {[%clk 0:02:45]} 8. Bxc3 {[%clk 0:02:57]}  Bxc3+ {[%clk 0:02:46]} 9. Nd2 {[%clk 0:02:57]}  Nxe5 {[%clk 0:02:46]} 10. Rb3 {[%clk 0:02:51]}  Ba5 {[%clk 0:02:45]} 11. e3 {[%clk 0:02:26]}  Nf6 {[%clk 0:02:40]} 12. Bd3 {[%clk 0:02:21]}  d5 {[%clk 0:02:40]} 13. O-O {[%clk 0:02:20]}  O-O {[%clk 0:02:40]} 14. Nf3 {[%clk 0:02:19]}  Nxf3+ {[%clk 0:02:39]} 15. Qxf3 {[%clk 0:02:18]}  c6 {[%clk 0:02:39]} 16. h3 {[%clk 0:02:11]}  b5 {[%clk 0:02:37]} 17. Bf5 {[%clk 0:02:10]}  Bxf5 {[%clk 0:02:36]} 18. Qxf5 {[%clk 0:02:09]}  Ne4 {[%clk 0:02:36]} 19. Rd1 {[%clk 0:02:01]}  g6 {[%clk 0:02:12]} 20. Qf3 {[%clk 0:01:58]}  Nd2 {[%clk 0:02:03]} 21. Rxd2 {[%clk 0:01:54]}  Bxd2 {[%clk 0:02:04]} 22. c3 {[%clk 0:01:55]}  b4 {[%clk 0:01:27]} 23. cxb4 {[%clk 0:01:50]}  a5 {[%clk 0:01:26]} 24. b5 {[%clk 0:01:48]}  cxb5 {[%clk 0:01:18]} 25. Rxb5 {[%clk 0:01:44]}  Bc3 {[%clk 0:01:10]} 26. Qxd5 {[%clk 0:01:40]}  Rad8 {[%clk 0:01:06]} 27. Qb3 {[%clk 0:01:39]}  Rc8 {[%clk 0:00:54]} 28. Rb7 {[%clk 0:01:36]}  Be5 {[%clk 0:00:51]} 29. g3 {[%clk 0:01:36]}  h5 {[%clk 0:00:41]} 30. h4 {[%clk 0:01:35]}  Rc3 {[%clk 0:00:33]} 31. Qd5 {[%clk 0:01:32]}  Rc1+ {[%clk 0:00:32]} 32. Kg2 {[%clk 0:01:31]}  Bc7 {[%clk 0:00:22]} 33. Qg5 {[%clk 0:00:51]}  Rc2 {[%clk 0:00:14]} 34. a4 {[%clk 0:00:50]}  Rc4 {[%clk 0:00:07]} 35. Qe7 {[%clk 0:00:47]}  Bb8 {[%clk 0:00:05]} 36. Qd7 {[%clk 0:00:42]}  Rc2 {[%clk 0:00:03]} 37. Qb5 {[%clk 0:00:39]}  Bc7 {[%clk 0:00:02]} 38. Qd7 {[%clk 0:00:37]}  Bb8 {[%clk 0:00:02]} 39. Kf3 {[%clk 0:00:34]}  Be5 {[%clk 0:00:03]} 40. Qd5 {[%clk 0:00:28]}  Bb8 {[%clk 0:00:03]} 41. Qb3 {[%clk 0:00:22]}  Rc6 {[%clk 0:00:03]} 42. Rxb8 {[%clk 0:00:21]}  Rf6+ {[%clk 0:00:03]} 43. Kg2 {[%clk 0:00:21]}  Rb6 {[%clk 0:00:03]} 44. Rxb6 {[%clk 0:00:20]} 1-0


[Site "https://www.chess.com"]

[Event "Titled Tuesday Blitz May 10 Early 2022"]
[White "Sadykov, Ramil"]
[Black "Vifleemskaia, Svetlana"]
[WhiteFideId "24113590"]
[BlackFideId "4129490"]
[WhiteElo "2280"]
[BlackElo "1929"]
[Result "1-0"]
[Round "06"]
[TimeControl "180+1"]
[Date "2022.05.11"]
[WhiteClock "0:01:47"]
[BlackClock "0:00:13"]

1. d4 {[%clk 0:03:00]}  Nf6 {[%clk 0:02:35]} 2. Nc3 {[%clk 0:02:59]}  d5 {[%clk 0:02:34]} 3. Bf4 {[%clk 0:02:57]}  a6 {[%clk 0:02:33]} 4. e3 {[%clk 0:02:57]}  c5 {[%clk 0:02:33]} 5. Nf3 {[%clk 0:02:54]}  Nc6 {[%clk 0:02:32]} 6. Ne5 {[%clk 0:02:54]}  cxd4 {[%clk 0:02:28]} 7. exd4 {[%clk 0:02:55]}  Bf5 {[%clk 0:02:24]} 8. g4 {[%clk 0:02:54]}  Bg6 {[%clk 0:02:22]} 9. h4 {[%clk 0:02:53]}  Nb4 {[%clk 0:01:54]} 10. Rc1 {[%clk 0:02:42]}  e6 {[%clk 0:01:20]} 11. h5 {[%clk 0:02:39]}  Bxc2 {[%clk 0:01:17]} 12. Rxc2 {[%clk 0:02:40]}  Nxc2+ {[%clk 0:01:16]} 13. Qxc2 {[%clk 0:02:38]}  Qb6 {[%clk 0:01:14]} 14. Qa4+ {[%clk 0:02:31]}  Ke7 {[%clk 0:01:09]} 15. g5 {[%clk 0:02:28]}  Rd8 {[%clk 0:00:55]} 16. gxf6+ {[%clk 0:02:12]}  gxf6 {[%clk 0:00:56]} 17. Nd3 {[%clk 0:02:06]}  Rc8 {[%clk 0:00:39]} 18. Bh3 {[%clk 0:01:57]}  Rc4 {[%clk 0:00:24]} 19. Nxd5+ {[%clk 0:01:52]}  exd5 {[%clk 0:00:13]} 20. Qd7# {[%clk 0:01:47]} 1-0


[Site "https://www.chess.com"]

[Event "Titled Tuesday Blitz May 10 Early 2022"]
[White "Santos Ruiz, Miguel"]
[Black "Nakamura, Hikaru"]
[WhiteFideId "22291482"]
[BlackFideId "2016192"]
[WhiteElo "2486"]
[BlackElo "2850"]
[Result "1-0"]
[Round "06"]
[TimeControl "180+1"]
[Date "2022.05.10"]
[WhiteClock "0:00:09"]
[BlackClock "0:00:04"]

1. e4 {[%clk 0:03:00]}  g6 {[%clk 0:03:00]} 2. d4 {[%clk 0:03:00]}  Bg7 {[%clk 0:03:01]} 3. Be3 {[%clk 0:02:59]}  a6 {[%clk 0:03:01]} 4. f3 {[%clk 0:02:59]}  b6 {[%clk 0:03:00]} 5. Qd2 {[%clk 0:02:59]}  Bb7 {[%clk 0:03:00]} 6. c4 {[%clk 0:02:59]}  d6 {[%clk 0:03:00]} 7. Nc3 {[%clk 0:03:00]}  Nd7 {[%clk 0:03:00]} 8. h4 {[%clk 0:03:00]}  h5 {[%clk 0:03:00]} 9. Nh3 {[%clk 0:03:01]}  c5 {[%clk 0:03:01]} 10. d5 {[%clk 0:03:00]}  b5 {[%clk 0:02:55]} 11. cxb5 {[%clk 0:02:59]}  Qa5 {[%clk 0:02:52]} 12. a4 {[%clk 0:02:52]}  Ngf6 {[%clk 0:02:47]} 13. Be2 {[%clk 0:02:39]}  axb5 {[%clk 0:02:45]} 14. Bxb5 {[%clk 0:02:37]}  Ba6 {[%clk 0:02:46]} 15. O-O {[%clk 0:02:32]}  O-O {[%clk 0:02:44]} 16. Nf2 {[%clk 0:02:26]}  Bxb5 {[%clk 0:02:40]} 17. Nxb5 {[%clk 0:02:24]}  Nb6 {[%clk 0:02:28]} 18. Qxa5 {[%clk 0:02:19]}  Rxa5 {[%clk 0:02:28]} 19. b3 {[%clk 0:02:20]}  Nfd7 {[%clk 0:02:24]} 20. Rab1 {[%clk 0:02:00]}  Rb8 {[%clk 0:02:15]} 21. Rfc1 {[%clk 0:01:45]}  Rb7 {[%clk 0:01:52]} 22. Kf1 {[%clk 0:01:26]}  Ra8 {[%clk 0:01:50]} 23. Bd2 {[%clk 0:01:22]}  Ne5 {[%clk 0:01:42]} 24. Ke2 {[%clk 0:01:18]}  Ned7 {[%clk 0:01:19]} 25. Nd1 {[%clk 0:01:06]}  Bf6 {[%clk 0:00:56]} 26. g3 {[%clk 0:01:03]}  c4 {[%clk 0:00:47]} 27. a5 {[%clk 0:00:52]}  Nxd5 {[%clk 0:00:48]} 28. exd5 {[%clk 0:00:50]}  Rxb5 {[%clk 0:00:48]} 29. bxc4 {[%clk 0:00:50]}  Rbxa5 {[%clk 0:00:48]} 30. Bxa5 {[%clk 0:00:46]}  Rxa5 {[%clk 0:00:49]} 31. Rc2 {[%clk 0:00:43]}  Ra3 {[%clk 0:00:48]} 32. Nf2 {[%clk 0:00:41]}  Ne5 {[%clk 0:00:49]} 33. f4 {[%clk 0:00:39]}  Nf3 {[%clk 0:00:48]} 34. Ne4 {[%clk 0:00:17]}  Nd4+ {[%clk 0:00:48]} 35. Kd2 {[%clk 0:00:18]}  Nxc2 {[%clk 0:00:45]} 36. Nxf6+ {[%clk 0:00:18]}  exf6 {[%clk 0:00:45]} 37. Kxc2 {[%clk 0:00:19]}  Rxg3 {[%clk 0:00:20]} 38. Rb8+ {[%clk 0:00:18]}  Kg7 {[%clk 0:00:20]} 39. c5 {[%clk 0:00:19]}  Ra3 {[%clk 0:00:09]} 40. c6 {[%clk 0:00:12]}  Ra5 {[%clk 0:00:08]} 41. Kb3 {[%clk 0:00:08]}  Rc5 {[%clk 0:00:08]} 42. Rd8 {[%clk 0:00:06]}  g5 {[%clk 0:00:06]} 43. fxg5 {[%clk 0:00:05]}  fxg5 {[%clk 0:00:07]} 44. hxg5 {[%clk 0:00:05]}  h4 {[%clk 0:00:06]} 45. Rxd6 {[%clk 0:00:05]}  h3 {[%clk 0:00:07]} 46. Rh6 {[%clk 0:00:06]}  Rxd5 {[%clk 0:00:07]} 47. Rxh3 {[%clk 0:00:06]}  Rb5+ {[%clk 0:00:07]} 48. Kc4 {[%clk 0:00:06]}  Rb6 {[%clk 0:00:06]} 49. Kc5 {[%clk 0:00:06]}  Rb2 {[%clk 0:00:01]} 50. c7 {[%clk 0:00:06]}  Rc2+ {[%clk 0:00:01]} 51. Kd6 {[%clk 0:00:07]}  Kg6 {[%clk 0:00:02]} 52. Rf3 {[%clk 0:00:07]}  Rd2+ {[%clk 0:00:02]} 53. Kc6 {[%clk 0:00:08]}  Rc2+ {[%clk 0:00:03]} 54. Kd7 {[%clk 0:00:08]}  Rd2+ {[%clk 0:00:04]} 55. Kc8 {[%clk 0:00:09]}  Rc2 {[%clk 0:00:04]} 56. Rf6+ {[%clk 0:00:09]}  Kg7 {[%clk 0:00:04]} 57. Rd6 {[%clk 0:00:09]} 1-0


[Site "https://www.chess.com"]